Cogmind - Beta 10.1 @@@ ROGUE MODE // 2020.10.10 @ 19:49:01 Player: Xeram Result: Core destroyed Performance ------------- Evolutions (8) 4000 Regions Visited (28) 5600 Robots Destroyed (248) 1240 Value Destroyed (11355) 11355 Prototype IDs (66) 1320 Alien Tech Used (2) 400 Bonus (3683) 3683 TOTAL SCORE: 27598 Bonus ------- High Alert Combat Kills 762 Follower Combat Kills 1457 Network Hubs Disabled 200 Aligned with FarCom 300 Met Data Miner 300 Met Imprinter 300 Met Zhirov 300 Met R17 at Cetus 500 Scanned by Researcher 500 Friendly Fire -936 Cogmind --------- Core Integrity 0/1450 Matter 357/700 Energy 440/440 System Corruption 8% Temperature Cool (1197) Movement Hovering (151) Ox1 Location -2/Quarantine Parts ------- > --- POWER (2) -------- Quantum Reactor Light Quantum Reactor > --- PROPULSION (4) --- Combat Antigrav System Combat Linear Gravjet > --- UTILITY (15) ----- Experimental Thermal Generator Small Storage Unit Advanced Matter Compressor Enhanced Optical Array Advanced Targeting Computer Advanced Target Analyzer Phase Armor Focal Shield Hacking Suite System Shield > --- WEAPON (3) ------- Enhanced Quantum Rifle KE Penetrator > --- INVENTORY (6) ---- Quantum Shading Machine Enhanced Nova Cannon Sigix Corpse Sigix Corpse Peak State ------------ > --- POWER ------------ Quantum Reactor Light Quantum Reactor > --- PROPULSION ------- Improved Antigrav System Combat Antigrav System Combat Linear Gravjet > --- UTILITY ---------- Coolant Network Small Storage Unit Advanced Matter Compressor Enhanced Optical Array Advanced Targeting Computer Advanced Target Analyzer Phase Armor Focal Shield Hacking Suite System Shield > --- WEAPON ----------- Enhanced Quantum Rifle KE Penetrator Hypercooled Linear Accelerator > --- INVENTORY -------- Quantum Shading Machine Enhanced Nova Cannon Sigix Corpse Sigix Corpse [Rating: 151] Favorites ----------- Power Deuterium Engine Engine Deuterium Engine Power Core Light Nuclear Core Reactor Particle Reactor Propulsion Medium Treads Treads Medium Treads Leg Flexi-carbon Leg Hover Unit Improved Antigrav System Utility Large Storage Unit Device Advanced Heat Sink Storage Large Storage Unit Processor Advanced Signal Interpreter Hackware System Shield Protection Medium Reactive Plating Artifact Phase Armor Weapon Gauss Rifle Energy Gun Electrolaser Energy Cannon Neutron Cannon Ballistic Gun Gauss Rifle Ballistic Cannon Enhanced Gauss Cannon Launcher Advanced EMP Blaster Special Weapon Plasma Flamer Slashing Weapon Greatsword Build | -11 -10 -9 -9 -9 -8 -8 -8 -7 -7 -7 -7 -6 -6 -6 -6 -6 -5 -5 -5 -5 -5 -5 -5 -5 -4 -3 -2 -2 ------- Run | Scr Mat Mat Min Exi Min Mat Sto Fac Low Low Dat Pro Fac Low Low Zio Pro Fac Was Fac Ext Cet Arc Hub Fac Res Res Qua Slots Evolved 16 | . . 2 . . . 2 . 2 . . . . 2 . . . . 2 . . . . . . 2 2 2 . Power 1 | . . . . . . . . . . . . . . . . . . . . . . . . . . . 1 . Propulsion 2 | . . . . . . 1 . . . . . . . . . . . 1 . . . . . . . . . . Utility 13 | . . 2 . . . 1 . 2 . . . . 2 . . . . 1 . . . . . . 2 2 1 . Weapon . | . . . . . . . . . . . . . . . . . . . . . . . . . . . . . Parts Attached 315 | 6 2 12 . 2 . 11 13 13 4 1 . 6 22 5 25 8 7 15 11 8 20 22 2 8 24 29 10 29 Power 32 | 1 . 1 . . . 2 . 1 . . . . 3 1 4 . . 1 3 . 1 3 . 1 2 1 1 6 Engine 7 | 1 . . . . . 1 . 1 . . . . 2 1 1 . . . . . . . . . . . . . Core 8 | . . 1 . . . 1 . . . . . . . . 3 . . 1 1 . . . . . . . . 1 Reactor 17 | . . . . . . . . . . . . . 1 . . . . . 2 . 1 3 . 1 2 1 1 5 Propulsion 51 | 2 . 4 . . . 3 2 1 . 1 . 1 5 . 3 . . 4 3 . . 3 1 . 1 5 5 7 Treads 38 | 2 . 2 . . . 3 1 1 . 1 . 1 3 . 1 . . 3 3 . . 3 1 . 1 5 5 2 Leg 7 | . . 2 . . . . . . . . . . 2 . 2 . . 1 . . . . . . . . . . Wheel . | . . . . . . . . . . . . . . . . . . . . . . . . . . . . . Hover 6 | . . . . . . . 1 . . . . . . . . . . . . . . . . . . . . 5 Flight . | . . . . . . . . . . . . . . . . . . . . . . . . . . . . . Utility 123 | 1 2 3 . 2 . 4 1 8 2 . . 2 6 . 7 5 3 7 3 6 3 7 1 5 16 15 2 12 Device 50 | . . . . . . 1 . 2 . . . . 3 . 3 3 2 4 1 3 1 1 . 2 8 8 1 7 Storage 14 | 1 1 2 . 1 . 2 . . . . . . . . . . . . . 1 1 1 . . 1 1 . 2 Processor 15 | . 1 . . . . . . 2 . . . . 1 . . 1 . 1 1 . 1 . . 2 . 3 . 2 Hackware 2 | . . . . . . . . . . . . . . . . . . . . . . . . . . 1 1 . Protection 41 | . . 1 . 1 . 1 1 4 2 . . 2 2 . 4 1 1 2 1 2 . 5 1 1 7 2 . . Artifact 1 | . . . . . . . . . . . . . . . . . . . . . . . . . . . . 1 Weapon 109 | 2 . 4 . . . 2 10 3 2 . . 3 8 4 11 3 4 3 2 2 16 9 . 2 5 8 2 4 Energy Gun 19 | 1 . 1 . . . 1 1 . . . . . . 1 5 . . 1 . . . 3 . . . 3 . 2 Energy Cannon 10 | . . . . . . . 3 . . . . . 2 . 1 . . . . . . . . . 3 1 . . Ballistic Gun 42 | 1 . 3 . . . . 2 3 1 . . 1 3 1 2 3 2 1 . 2 7 3 . 2 . 2 2 1 Ballistic Cannon 8 | . . . . . . . . . . . . . . . . . . . . . 4 2 . . . 1 . 1 Launcher 22 | . . . . . . . 2 . 1 . . 2 3 2 2 . 2 1 2 . 2 1 . . 2 . . . Special Weapon 4 | . . . . . . 1 . . . . . . . . . . . . . . 3 . . . . . . . Impact Weapon . | . . . . . . . . . . . . . . . . . . . . . . . . . . . . . Slashing Weapon 4 | . . . . . . . 2 . . . . . . . 1 . . . . . . . . . . 1 . . Piercing Weapon . | . . . . . . . . . . . . . . . . . . . . . . . . . . . . . Special Melee Weapon . | . . . . . . . . . . . . . . . . . . . . . . . . . . . . . Unidentified Prototypes 31 | . . . . . . 1 4 1 . . . . . . 1 1 . 1 . . . 7 . . 3 4 . 8 Parts Lost 92 | . . 4 1 . . 3 . 2 . 1 . 3 3 . 14 . 1 1 5 1 2 3 3 1 16 5 . 23 Power 11 | . . . . . . . . . . . . . 1 . 1 . . . 1 . 1 1 . 1 1 . . 4 Propulsion 20 | . . 2 . . . . . 1 . 1 . 1 2 . 4 . . 1 1 . . 1 1 . 2 . . 3 Utility 39 | . . . 1 . . 1 . . . . . 2 . . 6 . 1 . 2 1 1 . . . 9 2 . 13 Weapon 22 | . . 2 . . . 2 . 1 . . . . . . 3 . . . 1 . . 1 2 . 4 3 . 3 Highest Loss Streak 15 | . . 3 1 . . 1 . 1 . 1 . 2 1 . 10 . 1 1 5 1 1 1 3 1 15 2 . 10 Average Slot Usage (%) 85 | . 90 81 98 92 88 92 99 98 99 99 100 94 97 100 88 72 86 79 72 75 82 86 87 82 69 35 86 76 Engine 3 | . 14 5 . . . 3 9 7 7 7 7 7 5 2 3 6 6 2 . . . . . . . . . . Core 1 | . . 5 11 11 11 5 . . . . . . . . 2 . . 2 1 . . . . . . . . . Reactor 1 | . . . . . . . . . . . . . . 3 . . . . 3 5 4 4 5 5 4 2 7 6 Treads 13 | . 28 17 22 22 22 24 26 21 23 22 23 18 12 13 3 6 6 9 10 11 11 10 11 11 7 7 14 4 Leg 1 | . . 2 . . . . . . . . . . 4 6 9 . . 1 . . . . . . . . . . Device 10 | . . . . . . 8 . 6 7 7 7 1 16 20 18 16 12 11 2 3 8 6 6 6 10 8 26 19 Storage 12 | . 14 14 22 19 11 15 18 15 15 15 15 15 13 13 12 12 12 11 11 12 13 11 11 11 7 1 4 4 Processor 13 | . 4 11 11 11 11 9 9 13 15 15 15 15 17 20 11 10 12 11 15 16 20 22 22 22 19 5 12 12 Protection 10 | . . 2 9 6 11 7 17 16 14 15 15 19 11 6 11 12 17 12 10 8 5 13 15 9 8 . 4 1 Energy Gun 1 | . 14 4 . . . 2 . . . . . . . 4 2 . . 1 . . . . . . . 4 3 1 Ballistic Gun 9 | . 14 17 22 22 22 13 4 7 14 15 15 11 9 4 3 . 17 14 11 13 7 12 10 15 8 . 6 8 Launcher 1 | . . . . . . . 3 3 . . . 3 . 1 1 . . . 4 2 . 1 . . . . . . Slashing Weapon 1 | . . . . . . . 3 3 . . . . . . 3 5 . . . . . . . . . 1 . . Naked Turns 226 | . . . . . . . . . . . . . . . . . . . . . . . . . 116 110 . . Heaviest Build 125 | 11 23 32 32 92 92 93 65 78 76 65 65 73 81 71 91 87 91 93 125 125 102 95 94 115 114 60 93 111 Greatest Support 160 | 40 40 46 46 46 46 84 84 84 78 72 72 72 64 52 52 20 20 69 150 150 150 160 160 160 160 115 155 155 Greatest Overweight (x) 27 | . . 2 . 1 1 2 1 1 . . . 1 3 1 27 4 4 4 1 . . 1 . . 1 . 1 1 Average Overweight (x) . | . . . . . 1 . . . . . . . 1 1 2 3 4 2 . . . . . . . . . . Largest Inventory Capacity 24 | 6 10 12 12 24 24 24 16 16 16 16 16 16 16 16 16 16 16 16 16 16 16 16 16 16 16 4 4 6 Average Capacity 14 | 5 6 10 12 14 24 18 16 16 16 16 16 16 16 16 16 16 16 16 16 16 16 16 16 16 13 4 4 4 Most Carried 18 | . 4 8 10 14 14 18 16 16 16 15 15 15 16 16 16 16 16 16 16 16 16 16 16 16 16 4 4 6 Average Carried 12 | . 1 5 9 10 14 13 15 15 15 14 15 13 14 15 12 15 15 15 15 14 15 15 15 12 12 1 2 3 Final Capacity 24 | 6 10 12 12 24 24 16 16 16 16 16 16 16 16 16 16 16 16 16 16 16 16 16 16 16 4 4 4 6 Final Carried 16 | . 4 8 10 14 14 12 16 16 14 15 15 14 15 16 9 15 14 16 15 15 16 16 14 16 . 4 3 4 Class Distribution -------------------- 44% | Mutant 14% | Scavenger-Gunner 13% | Scavenger-Mutant 7% | Derelict-Assassin 4% | Commander-Gunner 3% | Derelict-Tank 3% | Scavenger-Tank 3% | Gunner Dominant Class ---------------- Mutant | -10/Materials Mutant | -9/Materials Mutant | -9/Mines Mutant | -9/Exiles Hauler-Mutant | -8/Mines Mutant | -8/Materials Mutant | -8/Storage Mutant | -7/Factory Mutant | -7/Lower Caves Mutant | -7/Lower Caves Mutant | -7/Data Miner Mutant | -6/Proximity Caves Mutant | -6/Factory Scavenger-Mutant | -6/Lower Caves Mutant | -6/Lower Caves Derelict-Assassin | -6/Zion Derelict-Tank | -5/Proximity Caves Derelict-Tank | -5/Factory Mutant | -5/Waste Gunner | -5/Factory Commander-Gunner | -5/Extension Scavenger-Mutant | -5/Cetus Scavenger-Tank | -5/Archives Scavenger-Gunner | -5/Hub_04(d) Scavenger-Gunner | -4/Factory Mutant | -3/Research Scavenger-Gunner | -2/Research Scavenger-Gunner | -2/Quarantine Resources | -11 -10 -9 -9 -9 -8 -8 -8 -7 -7 -7 -7 -6 -6 -6 -6 -6 -5 -5 -5 -5 -5 -5 -5 -5 -4 -3 -2 -2 ----------- Run | Scr Mat Mat Min Exi Min Mat Sto Fac Low Low Dat Pro Fac Low Low Zio Pro Fac Was Fac Ext Cet Arc Hub Fac Res Res Qua Matter Collected 8314 | 197 73 259 108 . . 221 218 170 155 148 . 213 358 65 307 . 318 618 385 377 971 769 . 322 595 489 . 978 Remotely 506 | . . . . . . . . . . . . . . . . . . 323 183 . . . . . . . . . Salvage Created 12786 | . 77 189 135 . . 482 265 596 . 70 . 204 758 204 697 . 328 735 1103 503 1824 1050 . 720 1534 724 . 588 Parts 577 | . 7 17 2 . . 25 10 30 . 4 . 13 29 15 45 . 14 33 8 24 65 62 . 42 68 35 . 29 Haulers Intercepted 4 | . . . . . . 1 2 1 . . . . . . . . . . . . . . . . . . . . Recyclers Shooed 8 | . . . . . . . . . . . . . 2 . . . . 1 . . 2 . . . 3 . . . Parts Field Recycled . | . . . . . . . . . . . . . . . . . . . . . . . . . . . . . Retrieved Matter . | . . . . . . . . . . . . . . . . . . . . . . . . . . . . . Parts Self-Destructed 74 | . . . . . . . . . . 8 . 16 . 12 28 . 10 . . . . . . . . . . . Prevented 6 | . . . . . . . . . . . . 2 . 2 2 . . . . . . . . . . . . . Kills | -11 -10 -9 -9 -9 -8 -8 -8 -7 -7 -7 -7 -6 -6 -6 -6 -6 -5 -5 -5 -5 -5 -5 -5 -5 -4 -3 -2 -2 ------- Run | Scr Mat Mat Min Exi Min Mat Sto Fac Low Low Dat Pro Fac Low Low Zio Pro Fac Was Fac Ext Cet Arc Hub Fac Res Res Qua Combat Hostiles Destroyed 200 | . 2 7 8 . . 11 5 11 . 1 . 9 10 7 18 . 9 11 5 8 20 19 . 8 16 9 . 6 Melee 7 | . . . . . . . . 2 . . . . . . 4 . . . . . . . . . . 1 . . Guns 98 | . 2 7 8 . . 9 . 5 . 1 . 1 6 1 3 . 3 8 2 8 2 12 . 8 4 4 . 4 Cannons 22 | . . . . . . 2 2 . . . . . 1 . . . . . . . 6 1 . . 6 4 . . AOE 68 | . . . . . . . 3 4 . . . 8 3 6 11 . 6 3 3 . 10 6 . . 5 . . . Classes Destroyed 19 | . 1 2 2 . . 2 1 3 . . . . . . 2 . . 2 1 . 2 . . . . . . 1 Worker 16 | . . . 1 . . . 1 1 . . . . . . . . . 4 . . 2 . . . 5 2 . . Builder 8 | . . . . . . . . . . . . . . . . . . 1 . 1 1 . . . 4 . . 1 Tunneler 3 | . . . . . . . . . . . . . . . . . . 1 . . 2 . . . . . . . Hauler 4 | . . . . . . 1 2 1 . . . . . . . . . . . . . . . . . . . . Recycler 7 | . . . . . . 1 . . . . . . 1 . . . . 1 . . 3 . . . 1 . . . Operator 2 | . . . . . . . 1 . . . . . . . . . . . . . . . . 1 . . . . Watcher 5 | . . . . . . . . 2 . . . . . . . . . . . . 1 . . 1 1 . . . Swarmer 48 | . . 4 2 . . 5 . 4 . . . 8 . 6 8 . 4 . . . . 7 . . . . . . Grunt 64 | . 2 2 . . . 3 4 2 . . . . 7 . 4 . 2 6 . 4 9 5 . 3 9 2 . . Brawler 3 | . . . . . . . . . . . . . . . 2 . . . . . 1 . . . . . . . Duelist 3 | . . . . . . . . . . . . . . . . . . . . . 3 . . . . . . . Researcher 2 | . . . . . . . . . . . . . . . . . . . . . . . . . . . . 2 Sentry 24 | . . 1 . . . 3 1 2 . 1 . 1 2 . . . 1 2 . . 4 . . 2 . 4 . . Hunter 15 | . . . . . . . . 1 . . . . . 1 2 . 2 . . 2 1 2 . . 2 . . 2 Programmer 20 | . . . . . . . . 2 . . . . 1 . 1 . . 3 . 2 1 . . . 5 3 . 2 Behemoth 1 | . . . . . . . . . . . . . . . . . . . . . 1 . . . . . . . Compactor 5 | . . . . . . . . . . . . . . . . . . . 5 . . . . . . . . . Cetus Guard 5 | . . . . . . . . . . . . . . . . . . . . . . 5 . . . . . . Quarantine Guard 2 | . . . . . . . . . . . . . . . . . . . . . . . . . . . . 2 Lightning 3 | . . . . . . . . . . . . . . . . . . . . . . . . 3 . . . . Master Thief 1 | . . . . . . . . . . . . . . . 1 . . . . . . . . . . . . . Assembled 6 | . . . 6 . . . . . . . . . . . . . . . . . . . . . . . . . Thug 1 | . . . . . . . . . . . . . . . . . . . . . 1 . . . . . . . Best Kill Streak 16 | . 2 4 4 . . 4 6 4 . 1 . 3 4 4 4 . 4 7 4 4 8 7 . 4 16 3 . 4 Combat Bots Only 9 | . 2 4 4 . . 4 5 2 . 1 . 3 4 4 4 . 4 4 4 4 5 7 . 3 9 3 . 2 Max Kills in Single Turn 4 | . 1 1 1 . . 1 2 3 . 1 . 2 1 3 4 . 3 2 1 2 3 2 . 2 4 2 . 2 Gunslinging 1 | . . . . . . . . . . . . . . . . . . . . . . 1 . . . . . . Exploded 4 | . . . . . . . 1 2 . . . 2 1 3 4 . 3 1 1 . 3 1 . . 2 . . . Melee 1 | . . . . . . . . 1 . . . . . . 1 . . . . . . . . . . 1 . . Uniques/NPCs Destroyed . | . . . . . . . . . . . . . . . . . . . . . . . . . . . . . Combat | -11 -10 -9 -9 -9 -8 -8 -8 -7 -7 -7 -7 -6 -6 -6 -6 -6 -5 -5 -5 -5 -5 -5 -5 -5 -4 -3 -2 -2 -------- Run | Scr Mat Mat Min Exi Min Mat Sto Fac Low Low Dat Pro Fac Low Low Zio Pro Fac Was Fac Ext Cet Arc Hub Fac Res Res Qua Damage Taken 27841 | . 102 634 284 . . 709 164 580 100 130 . 607 955 193 1621 . 456 1233 558 595 946 2167 956 407 6249 2640 . 5555 Core 4264 | . 12 92 71 . . 91 . 81 . 11 . 47 75 57 216 . . 30 24 15 52 70 . . 1124 732 . 1464 Absorbed by Shields 2214 | . . . . . . . . . . . . . . . 84 . . 439 6 122 465 264 . . . . . 834 Reduced by Siege Mode 296 | . . . . . . . . . . . . . . . . . . . . 24 . 93 . 3 113 36 . 27 Redirected to Core 165 | . . . . . . . . . . . . . . . . . . . . . . . . . . . . 165 Core Remaining (%) 66 | 100 95 . . . 59 . 83 . . . . 80 . . . . 59 . . . . . . 80 2 43 . . Volleys Fired 639 | 1 9 33 25 . . 33 16 23 13 9 . 20 39 11 23 . 18 41 14 21 64 62 . 26 47 40 . 51 Largest 3 | 2 2 2 2 . . 2 2 2 2 2 . 2 2 2 2 . 3 3 3 3 3 3 . 3 3 3 . 3 Hottest 240 | 60 60 85 43 . . 123 153 53 53 56 . 64 120 153 165 . 95 126 100 96 171 240 . 103 175 235 . 138 Shots Fired 1366 | 2 16 66 50 . . 63 28 42 22 18 . 31 66 19 34 . 48 111 35 63 117 128 . 75 102 86 . 144 Gun 1066 | 2 16 66 50 . . 59 8 38 18 18 . 18 45 11 19 . 43 105 22 63 32 112 . 75 56 64 . 126 Cannon 165 | . . . . . . . 16 . . . . . 11 5 7 . . . . . 46 5 . . 35 22 . 18 Launcher 114 | . . . . . . . 4 4 4 . . 13 10 3 8 . 5 6 13 . 22 11 . . 11 . . . Special 21 | . . . . . . 4 . . . . . . . . . . . . . . 17 . . . . . . . Kinetic 1002 | 1 9 45 50 . . 50 8 38 18 18 . 18 45 3 7 . 43 102 22 63 78 102 . 75 56 30 . 121 Thermal 180 | 1 7 21 . . . 13 6 . . . . . 11 13 18 . . . . . . 15 . . 33 35 . 7 Explosive 39 | . . . . . . . 4 . . . . 6 1 . 4 . 5 6 13 . . . . . . . . . Electromagnetic 128 | . . . . . . . 10 4 4 . . 7 9 3 5 . . 3 . . 22 11 . . 13 21 . 16 Robot Hit Streak 20 | 1 10 9 11 . . 16 10 12 10 9 . 6 12 17 3 . 5 13 18 19 17 18 . 17 13 20 . 15 Robot Miss Streak 6 | 1 1 3 4 . . 2 2 2 3 2 . 6 2 2 4 . 4 3 1 2 4 2 . 2 2 5 . 4 Penetration Max 1 | . . . . . . . . . . . . . . . . . . 1 . 1 1 1 . 1 1 1 . 1 Secondary Targets 14 | . 1 1 2 . . 2 . . . . . . . . . . . . . 1 . 4 . . . . . 3 Max Gunslinging Chain 1 | . 1 1 1 . . 1 . . . . . . . . . . . . . 1 . 1 . . . . . 1 Shots Hit Robots 936 | 1 13 42 23 . . 51 16 37 14 15 . 16 43 13 27 . 30 70 29 48 71 84 . 56 71 75 . 91 Core Hits 513 | . 4 12 16 . . 22 16 23 2 4 . 18 26 9 25 . 18 39 15 22 70 47 . 24 46 24 . 31 Critical Hits 94 | . . . . . . 1 . 2 . 1 . 1 1 1 . . . 2 3 5 19 14 . 14 16 3 . 11 Critical Kills 27 | . . . . . . . . 1 . 1 . . . . . . . 2 1 2 3 5 . 5 5 1 . 1 Critical Parts Destroyed 64 | . . . . . . 1 . 1 . . . 1 1 1 . . . . 1 3 15 9 . 9 11 2 . 9 Melee Attacks 32 | . . . . . . . 6 5 . . . . . . 16 . . . . . . . . . . 5 . . Impact . | . . . . . . . . . . . . . . . . . . . . . . . . . . . . . Slashing 32 | . . . . . . . 6 5 . . . . . . 16 . . . . . . . . . . 5 . . Piercing . | . . . . . . . . . . . . . . . . . . . . . . . . . . . . . Sneak Attacks 3 | . . . . . . . 1 2 . . . . . . . . . . . . . . . . . . . . Combat Hostiles . | . . . . . . . . . . . . . . . . . . . . . . . . . . . . . Follow-up Attacks . | . . . . . . . . . . . . . . . . . . . . . . . . . . . . . Damage Inflicted 34263 | 7 125 449 268 . 4 670 1193 1526 330 340 . 1131 1404 497 1618 . 1212 2639 2793 982 3734 2672 . 1658 4176 2441 . 2394 Guns 15802 | 7 125 449 255 . . 632 44 634 225 340 . 257 750 149 205 . 526 1608 425 982 567 1969 . 1281 923 1652 . 1797 Cannons 4536 | . . . . . . . 248 . . . . . 198 148 111 . . . . . 1105 163 . . 1320 658 . 585 Explosions 12691 | . . . . . . . 710 521 105 . . 874 442 200 868 . 686 1031 2368 . 2046 540 . 373 1927 . . . Melee 1109 | . . . . . . . 191 371 . . . . . . 420 . . . . . . . . . . 127 . . Ramming 87 | . . . 13 . 4 . . . . . . . 14 . 14 . . . . . 16 . . 4 6 4 . 12 Kinetic 15672 | 7 47 250 255 . . 500 44 634 225 340 . 257 750 44 77 . 526 1547 425 982 1672 1987 . 1281 923 871 . 2028 Thermal 4884 | . 78 199 . . . 170 56 84 . . . . 228 316 299 . . . . . 259 219 . . 1933 924 . 119 Explosive 6199 | . . . . . . . 710 269 . . . 501 125 . 509 . 686 1031 2368 . . . . . . . . . Electromagnetic 6312 | . . . . . . . 192 168 105 . . 373 287 137 299 . . 61 . . 1787 466 . 373 1314 515 . 235 Impact . | . . . . . . . . . . . . . . . . . . . . . . . . . . . . . Slashing 1109 | . . . . . . . 191 371 . . . . . . 420 . . . . . . . . . . 127 . . Piercing . | . . . . . . . . . . . . . . . . . . . . . . . . . . . . . Highest Corruption 15 | . . . . . . . 1 1 1 1 1 3 . . 2 2 . 5 5 5 15 15 15 15 14 8 . 8 Average Corruption 5 | . . . . . . . 1 1 1 1 1 2 . . 1 2 . 4 5 5 11 15 15 15 5 7 . 6 Corruption Purged . | . . . . . . . . . . . . . . . . . . . . . . . . . . . . . Effects 314 | . . . . . . . 1 2 2 1 . 10 . . 8 3 . 9 11 19 90 51 5 35 26 23 . 18 Message Errors 57 | . . . . . . . . 2 1 1 . 2 . . 3 1 . . 2 2 17 7 3 3 5 3 . 5 Matter Fused 41 | . . . . . . . . . . . . 2 . . . . . 4 4 5 8 6 1 5 3 1 . 2 Heat Flow Errors 27 | . . . . . . . . . . . . 1 . . 2 1 . . 1 2 11 5 . 2 1 . . 1 Energy Discharges 28 | . . . . . . . 1 . 1 . . 1 . . 3 1 . 1 1 1 8 1 . 3 1 2 . 3 Parts Rejected 2 | . . . . . . . . . . . . . . . . . . . . . . 1 . . . . . 1 Data Loss (minor) 28 | . . . . . . . . . . . . 2 . . . . . 2 1 3 7 4 . . 4 4 . 1 Data Loss (major) 9 | . . . . . . . . . . . . . . . . . . . . 2 4 2 . 1 . . . . Misfires 9 | . . . . . . . . . . . . . . . . . . . 2 . 4 . . . 1 2 . . Alerts 6 | . . . . . . . . . . . . . . . . . . . . . 1 1 1 1 2 . . . Misdirections 16 | . . . . . . . . . . . . . . . . . . . . . 10 2 . 2 2 . . . Targeting Errors 76 | . . . . . . . . . . . . 2 . . . . . 2 . 4 17 17 . 15 6 9 . 4 Weapon Failures 15 | . . . . . . . . . . . . . . . . . . . . . 3 5 . 3 1 2 . 1 Overload Shots 1 | . . . . . . . . . . . . . . . . . . . . . . 1 . . . . . . Overflow Damage 934 | . . . . . . . 131 82 33 . . 55 . . 22 . 37 42 40 . 18 19 . 158 261 36 . . Projectiles 99 | . . . . . . . . . . . . . . . . . . . . . . . . . 70 29 . . Explosions 626 | . . . . . . . 27 2 33 . . 55 . . 4 . 37 42 40 . 18 19 . 158 191 . . . Melee 209 | . . . . . . . 104 80 . . . . . . 18 . . . . . . . . . . 7 . . Knockbacks 8 | . . . . . . . . . . . . . . . . . . . . . 3 . . . . 5 . . Impact 1 | . . . . . . . . . . . . . . . . . . . . . 1 . . . . . . . Kinetic 7 | . . . . . . . . . . . . . . . . . . . . . 2 . . . . 5 . . Secondary . | . . . . . . . . . . . . . . . . . . . . . . . . . . . . . Self-Inflicted Damage 1215 | . . . . . . . . 15 80 . . 101 40 . 144 . . 130 366 . 130 19 . 104 85 1 . . Shots 40 | . . . . . . . . 1 3 . . 4 2 . 7 . . 3 9 . 6 2 . 1 2 . . . Rammed 17 | . . . 1 . 1 . . . . . . . 2 . 2 . . . . . 2 . . 2 1 3 . 3 Targets Rammed 21 | . . . 2 . 1 . . . . . . . 3 . 4 . . . . . 2 . . 2 1 3 . 3 Kicked 3 | . . . . . . . . . . . . . 1 . 2 . . . . . . . . . . . . . Crushed 1 | . . . 1 . . . . . . . . . . . . . . . . . . . . . . . . . Highest Temperature 1197 | 20 94 346 34 . . 176 377 50 296 28 . 136 24 144 89 66 84 223 247 351 264 281 . 257 233 172 . 1197 Average Temperature 83 | 10 55 147 7 . . 38 111 17 101 18 . 34 7 78 23 47 24 62 97 118 72 118 . 51 78 65 . 209 Received Heat Transfer 2996 | . 54 213 40 . . 207 18 51 . 24 . 90 345 . 78 . 126 189 . 102 145 267 . 90 594 300 . 63 Effects 23 | . . . . . . . 1 . . . . . . . . . . . 3 1 . . . . . . . 18 Shutdowns 6 | . . . . . . . 1 . . . . . . . . . . . . . . . . . . . . 5 Interference 3 | . . . . . . . . . . . . . . . . . . . 3 . . . . . . . . . Matter Decay 4 | . . . . . . . . . . . . . . . . . . . . 1 . . . . . . . 3 Damage (minor) 1 | . . . . . . . . . . . . . . . . . . . . . . . . . . . . 1 Damage (major) 5 | . . . . . . . . . . . . . . . . . . . . . . . . . . . . 5 Damage (core) 4 | . . . . . . . . . . . . . . . . . . . . . . . . . . . . 4 Siege Activations 14 | . . . . . . . . . . . . . . . . . . . . 1 1 4 . 1 2 1 . 4 Total Turns 344 | . . . . . . . . . . . . . . . . . . . . 53 8 63 . 57 46 32 . 85 Longest Duration 57 | . . . . . . . . . . . . . . . . . . . . 53 8 33 . 57 32 32 . 57 Robots Corrupted 5 | . . . . . . . . . . . . . . . . . . . . . 2 . . . 2 . . 1 Combat Hostiles 4 | . . . . . . . . . . . . . . . . . . . . . 2 . . . 1 . . 1 Parts Fried 21 | . . . . . . . . . . . . . 3 . . . . . . . 8 . . . 8 1 . 1 Impact Corruptions . | . . . . . . . . . . . . . . . . . . . . . . . . . . . . . Robots Melted . | . . . . . . . . . . . . . . . . . . . . . . . . . . . . . Combat Hostiles . | . . . . . . . . . . . . . . . . . . . . . . . . . . . . . Parts Melted 13 | . . 2 . . . 1 . . . . . . . . . . . . . . . 1 . 2 2 1 . 4 Heat Transferred 5517 | . 175 481 . . . 536 74 50 . . . . 175 422 325 . . . . . 300 285 . . 1473 1073 . 148 Parts Sabotaged . | . . . . . . . . . . . . . . . . . . . . . . . . . . . . . Parts Stolen 12 | . . . . . . . . . 4 . . 1 . 1 5 . 1 . . . . . . . . . . . Parts Stripped . | . . . . . . . . . . . . . . . . . . . . . . . . . . . . . Power Chain Reactions 17 | . . . . . . . . . . . . 1 . 1 2 . . . . . 6 4 . . 3 . . . Missiles Intercepted . | . . . . . . . . . . . . . . . . . . . . . . . . . . . . . Alert | -11 -10 -9 -9 -9 -8 -8 -8 -7 -7 -7 -7 -6 -6 -6 -6 -6 -5 -5 -5 -5 -5 -5 -5 -5 -4 -3 -2 -2 ------- Run | Scr Mat Mat Min Exi Min Mat Sto Fac Low Low Dat Pro Fac Low Low Zio Pro Fac Was Fac Ext Cet Arc Hub Fac Res Res Qua Peak Influence 728 | . 50 166 98 . . 182 374 390 . . . . 182 . . . . 314 110 142 717 705 265 637 728 469 310 390 Initial 389 | . . 20 7 . . . 65 166 . . . . 114 . . . . 94 57 . 69 389 231 67 311 304 238 174 Average 206 | . 28 81 12 . . 83 239 306 . . . . 73 . . . . 164 79 37 271 530 231 286 454 356 279 149 Maximum Alert Level 3 | . . . . . . . 1 1 . . . . . . . . . 1 . . 3 3 1 2 3 2 1 1 Low Security (%) 57 | 100 100 100 100 . 100 100 17 19 . . . . 100 . . . . 77 100 100 50 . 6 58 . . . 84 Level 1 28 | . . . . . . . 82 80 . . . . . . . . . 22 . . 9 15 93 . 49 80 100 15 Level 2 13 | . . . . . . . . . . . . . . . . . . . . . 39 78 . 41 43 20 . . Level 3 . | . . . . . . . . . . . . . . . . . . . . . 1 5 . . 6 . . . Level 4 . | . . . . . . . . . . . . . . . . . . . . . . . . . . . . . Level 5 . | . . . . . . . . . . . . . . . . . . . . . . . . . . . . . High Security . | . . . . . . . . . . . . . . . . . . . . . . . . . . . . . Max Security . | . . . . . . . . . . . . . . . . . . . . . . . . . . . . . Squads Dispatched 39 | . 1 . . . . 1 2 5 . . . . 1 . . . . 3 . 2 4 1 . 4 7 2 2 4 Investigation 2 | . 1 . . . . . . . . . . . . . . . . . . . . 1 . . . . . . Extermination 10 | . . . . . . . . 2 . . . . 1 . . . . 2 . 1 . . . . 2 1 . 1 Reinforcement 20 | . . . . . . 1 2 . . . . . . . . . . 1 . 1 3 . . 2 4 1 2 3 Assault 2 | . . . . . . . . . . . . . . . . . . . . . 1 . . 1 . . . . Garrison 5 | . . . . . . . . 3 . . . . . . . . . . . . . . . 1 1 . . . Intercept . | . . . . . . . . . . . . . . . . . . . . . . . . . . . . . Construction Impeded 8 | . . . . . . . . . . . . . . . . . . 1 . . 3 . . 1 2 1 . . Haulers Reinforced 1 | . . . . . . . . . . . . . . . . . . . . . . . . . 1 . . . Stealth | -11 -10 -9 -9 -9 -8 -8 -8 -7 -7 -7 -7 -6 -6 -6 -6 -6 -5 -5 -5 -5 -5 -5 -5 -5 -4 -3 -2 -2 --------- Run | Scr Mat Mat Min Exi Min Mat Sto Fac Low Low Dat Pro Fac Low Low Zio Pro Fac Was Fac Ext Cet Arc Hub Fac Res Res Qua Distress Signals 14 | . . . . . . 1 1 1 . . . . 1 . . . . . . 1 1 2 . . 3 2 . 1 Communications Jammed 8 | . . . . . . . . . . . . . . . . . . . . . . . . . 8 . . . Distress Signals 7 | . . . . . . . . . . . . . . . . . . . . . . . . . 7 . . . Times Spotted 377 | . 2 11 16 . . 15 18 12 4 2 . 14 18 8 19 . 9 14 6 10 40 30 7 14 53 20 4 31 Peak Tracking Total 18 | . 2 4 4 . . 4 6 3 2 1 . 4 4 3 4 . 2 5 4 4 7 5 6 6 18 5 3 14 Tactical Retreats 40 | . . 1 4 . . 1 2 1 . . . 1 1 . . . 2 1 1 . 3 5 1 1 7 6 . 2 Traps | -11 -10 -9 -9 -9 -8 -8 -8 -7 -7 -7 -7 -6 -6 -6 -6 -6 -5 -5 -5 -5 -5 -5 -5 -5 -4 -3 -2 -2 ------- Run | Scr Mat Mat Min Exi Min Mat Sto Fac Low Low Dat Pro Fac Low Low Zio Pro Fac Was Fac Ext Cet Arc Hub Fac Res Res Qua Traps Triggered 12 | . 1 . . . . . 1 2 1 . . . 4 . . . . 1 . . . . . . 2 . . . Indirectly 5 | . . . . . . . . . 1 . . . 3 . . . . . . . . . . . 1 . . . Trap Hack Attempts . | . . . . . . . . . . . . . . . . . . . . . . . . . . . . . Triggered . | . . . . . . . . . . . . . . . . . . . . . . . . . . . . . Disarmed . | . . . . . . . . . . . . . . . . . . . . . . . . . . . . . Reprogrammed . | . . . . . . . . . . . . . . . . . . . . . . . . . . . . . Reused . | . . . . . . . . . . . . . . . . . . . . . . . . . . . . . Traps Extracted . | . . . . . . . . . . . . . . . . . . . . . . . . . . . . . Installed . | . . . . . . . . . . . . . . . . . . . . . . . . . . . . . Triggered 2 | . . . . . . . . . . . . . . 1 . . . . . . 1 . . . . . . . Machines | -11 -10 -9 -9 -9 -8 -8 -8 -7 -7 -7 -7 -6 -6 -6 -6 -6 -5 -5 -5 -5 -5 -5 -5 -5 -4 -3 -2 -2 ---------- Run | Scr Mat Mat Min Exi Min Mat Sto Fac Low Low Dat Pro Fac Low Low Zio Pro Fac Was Fac Ext Cet Arc Hub Fac Res Res Qua Machines Disabled 55 | . . . 1 . . . 5 10 . . . . 3 . . . . 1 . 1 3 5 . 6 12 . . 8 Max in Single Turn 7 | . . . 1 . . . 1 7 . . . . 1 . . . . 1 . 1 1 3 . 5 3 . . 1 Garrison Access 2 | . . . . . . . . . . . . . . . . . . . . . . . . . 1 . . 1 Network Hub 1 | . . . . . . . . . . . . . . . . . . . . . . . . 1 . . . . Machines Sabotaged . | . . . . . . . . . . . . . . . . . . . . . . . . . . . . . Garrisons Compromised . | . . . . . . . . . . . . . . . . . . . . . . . . . . . . . Overloaded Fab Kills . | . . . . . . . . . . . . . . . . . . . . . . . . . . . . . Fab Network Shutdowns . | . . . . . . . . . . . . . . . . . . . . . . . . . . . . . Hacking | -11 -10 -9 -9 -9 -8 -8 -8 -7 -7 -7 -7 -6 -6 -6 -6 -6 -5 -5 -5 -5 -5 -5 -5 -5 -4 -3 -2 -2 --------- Run | Scr Mat Mat Min Exi Min Mat Sto Fac Low Low Dat Pro Fac Low Low Zio Pro Fac Was Fac Ext Cet Arc Hub Fac Res Res Qua Machines Accessed 42 | . 1 4 . 1 . 2 5 2 1 . 4 . 3 . 1 . . 1 . 2 3 2 . . 4 . 1 5 Terminals 28 | . 1 4 . . . 2 5 1 . . . . 3 . . . . 1 . . 3 2 . . 1 . 1 4 Fabricators 3 | . . . . . . . . 1 . . . . . . . . . . . 2 . . . . . . . . Repair Stations 1 | . . . . . . . . . . . . . . . . . . . . . . . . . 1 . . . Recycling Units . | . . . . . . . . . . . . . . . . . . . . . . . . . . . . . Scanalyzers 1 | . . . . . . . . . . . . . . . . . . . . . . . . . 1 . . . Garrison Access 2 | . . . . . . . . . . . . . . . . . . . . . . . . . 1 . . 1 Total Hacks 128 | . 5 17 . 1 . 4 8 4 1 . 25 . 7 . 1 . . 1 . 5 7 4 . . 11 . 4 23 Successful 72 | . 1 10 . 1 . 2 5 . 1 . 25 . 5 . 1 . . . . 1 1 2 . . 4 . 1 12 Failed 56 | . 4 7 . . . 2 3 4 . . . . 2 . . . . 1 . 4 6 2 . . 7 . 3 11 Catastrophic 7 | . 1 1 . . . . . . . . . . . . . . . . . 1 . . . . 1 . 1 2 Database Lockouts . | . . . . . . . . . . . . . . . . . . . . . . . . . . . . . Manual 28 | . 3 11 . 1 . 1 3 . . . . . 1 . . 1 . . . . . 3 3 . . . . 1 Terminals 83 | . 5 17 . . . 4 8 2 . . . . 7 . . . . 1 . . 7 4 . . 2 . 4 22 Fabricators 7 | . . . . . . . . 2 . . . . . . . . . . . 5 . . . . . . . . Repair Stations 4 | . . . . . . . . . . . . . . . . . . . . . . . . . 4 . . . Recycling Units . | . . . . . . . . . . . . . . . . . . . . . . . . . . . . . Scanalyzers 4 | . . . . . . . . . . . . . . . . . . . . . . . . . 4 . . . Garrison Access 2 | . . . . . . . . . . . . . . . . . . . . . . . . . 1 . . 1 Terminal Hacks 58 | . . 4 . 1 . 1 5 . 1 . 25 . 5 . 1 . . . . . 1 2 . . . . 1 11 Record 16 | . . . . . . . . . . . 11 . . . . . . . . . . 2 . . . . . 3 Part Schematic 7 | . . . . . . . . . . . 7 . . . . . . . . . . . . . . . . . Robot Schematic 4 | . . . . . . . . . . . 4 . . . . . . . . . . . . . . . . . Robot Analysis 1 | . . . . . . . . . . . . . . . . . . . . . 1 . . . . . . . Prototype ID Bank 5 | . . 1 . . . . 1 . . . 3 . . . . . . . . . . . . . . . . . Open Door 5 | . . . . . . . 3 . 1 . . . . . 1 . . . . . . . . . . . . . Branch Access Points 2 | . . 1 . . . . . . . . . . 1 . . . . . . . . . . . . . . . Terminal Index 2 | . . . . . . . . . . . . . 1 . . . . . . . . . . . . . . 1 Unreport Threat 2 | . . . . . . . . . . . . . . . . . . . . . . . . . . . . 2 Locate Traps 2 | . . . . . . . . . . . . . 2 . . . . . . . . . . . . . . . Dispatch Records 1 | . . . . . . . . . . . . . . . . . . . . . . . . . . . . 1 Recall Reinforcements 2 | . . . . . . . . . . . . . . . . . . . . . . . . . . . . 2 Hauler Manifests 1 | . . . . . . . 1 . . . . . . . . . . . . . . . . . . . . . Registered Components 4 | . . 1 . . . 1 . . . . . . 1 . . . . . . . . . . . . . 1 . Registered Prototypes 2 | . . 1 . . . . . . . . . . . . . . . . . . . . . . . . . 1 Zone Layout 1 | . . . . . . . . . . . . . . . . . . . . . . . . . . . . 1 EX-Prototype ID Bank 1 | . . . . 1 . . . . . . . . . . . . . . . . . . . . . . . . Fabricator Hacks 1 | . . . . . . . . . . . . . . . . . . . . 1 . . . . . . . . Load Schematic 1 | . . . . . . . . . . . . . . . . . . . . 1 . . . . . . . . Repair Station Hacks 1 | . . . . . . . . . . . . . . . . . . . . . . . . . 1 . . . Scan Component 1 | . . . . . . . . . . . . . . . . . . . . . . . . . 1 . . . Recycling Unit Hacks . | . . . . . . . . . . . . . . . . . . . . . . . . . . . . . Scanalyzer 2 | . . . . . . . . . . . . . . . . . . . . . . . . . 2 . . . Insert Component 1 | . . . . . . . . . . . . . . . . . . . . . . . . . 1 . . . Analyze 1 | . . . . . . . . . . . . . . . . . . . . . . . . . 1 . . . Garrison Access Hacks 2 | . . . . . . . . . . . . . . . . . . . . . . . . . 1 . . 1 Seal Access 2 | . . . . . . . . . . . . . . . . . . . . . . . . . 1 . . 1 Unauthorized Hacks 8 | . 1 6 . . . 1 . . . . . . . . . . . . . . . . . . . . . . Terminals 8 | . 1 6 . . . 1 . . . . . . . . . . . . . . . . . . . . . . Track 1 | . . 1 . . . . . . . . . . . . . . . . . . . . . . . . . . Botnet 5 | . 1 3 . . . 1 . . . . . . . . . . . . . . . . . . . . . . Detonate 1 | . . 1 . . . . . . . . . . . . . . . . . . . . . . . . . . Operators 1 | . . 1 . . . . . . . . . . . . . . . . . . . . . . . . . . Fabricators . | . . . . . . . . . . . . . . . . . . . . . . . . . . . . . Repair Stations . | . . . . . . . . . . . . . . . . . . . . . . . . . . . . . Recycling Units . | . . . . . . . . . . . . . . . . . . . . . . . . . . . . . Scanalyzers . | . . . . . . . . . . . . . . . . . . . . . . . . . . . . . Garrison Access . | . . . . . . . . . . . . . . . . . . . . . . . . . . . . . Data Cores Recovered . | . . . . . . . . . . . . . . . . . . . . . . . . . . . . . Used . | . . . . . . . . . . . . . . . . . . . . . . . . . . . . . Hacking Detections 30 | . 1 4 . . . 2 4 1 . . . . 2 . . . . 1 . 2 3 3 . . 3 . 1 3 Full Trace Events 3 | . 1 . . . . . 1 . . . . . . . . . . . . . . 1 . . . . . . Feedback Events . | . . . . . . . . . . . . . . . . . . . . . . . . . . . . . Feedback Blocked . | . . . . . . . . . . . . . . . . . . . . . . . . . . . . . Robot Schematics Acquired 4 | . . . . . . . . . . . 4 . . . . . . . . . . . . . . . . . Robots Built . | . . . . . . . . . . . . . . . . . . . . . . . . . . . . . Matter . | . . . . . . . . . . . . . . . . . . . . . . . . . . . . . Time . | . . . . . . . . . . . . . . . . . . . . . . . . . . . . . Total Robot Build Rating . | . . . . . . . . . . . . . . . . . . . . . . . . . . . . . Part Schematics Acquired 8 | . . . . . . . . . . . 7 . . . . . . . . . . . . . 1 . . . Parts Built . | . . . . . . . . . . . . . . . . . . . . . . . . . . . . . Matter . | . . . . . . . . . . . . . . . . . . . . . . . . . . . . . Time . | . . . . . . . . . . . . . . . . . . . . . . . . . . . . . Total Part Build Rating . | . . . . . . . . . . . . . . . . . . . . . . . . . . . . . Parts Repaired . | . . . . . . . . . . . . . . . . . . . . . . . . . . . . . Time . | . . . . . . . . . . . . . . . . . . . . . . . . . . . . . Parts Recycled . | . . . . . . . . . . . . . . . . . . . . . . . . . . . . . Recycled Matter . | . . . . . . . . . . . . . . . . . . . . . . . . . . . . . Retrieved Matter . | . . . . . . . . . . . . . . . . . . . . . . . . . . . . . Retrieved Components . | . . . . . . . . . . . . . . . . . . . . . . . . . . . . . Parts Scanalyzed 1 | . . . . . . . . . . . . . . . . . . . . . . . . . 1 . . . Part Schematics Acquired 1 | . . . . . . . . . . . . . . . . . . . . . . . . . 1 . . . Parts Damaged . | . . . . . . . . . . . . . . . . . . . . . . . . . . . . . Bothacking | -11 -10 -9 -9 -9 -8 -8 -8 -7 -7 -7 -7 -6 -6 -6 -6 -6 -5 -5 -5 -5 -5 -5 -5 -5 -4 -3 -2 -2 ------------ Run | Scr Mat Mat Min Exi Min Mat Sto Fac Low Low Dat Pro Fac Low Low Zio Pro Fac Was Fac Ext Cet Arc Hub Fac Res Res Qua Used RIF Installer . | . . . . . . . . . . . . . . . . . . . . . . . . . . . . . Robots Hacked . | . . . . . . . . . . . . . . . . . . . . . . . . . . . . . Non-combat . | . . . . . . . . . . . . . . . . . . . . . . . . . . . . . Combat . | . . . . . . . . . . . . . . . . . . . . . . . . . . . . . Robot Hacks Applied . | . . . . . . . . . . . . . . . . . . . . . . . . . . . . . Relay Couplers Released . | . . . . . . . . . . . . . . . . . . . . . . . . . . . . . Robots Rewired 17 | . . . . . . . . . . . . . . . . . . . . . 17 . . . . . . . Allies Hacked 2 | . . . . . . . . . . . . . . . . . . . . . 2 . . . . . . . Hacks Repelled . | . . . . . . . . . . . . . . . . . . . . . . . . . . . . . Allies | -11 -10 -9 -9 -9 -8 -8 -8 -7 -7 -7 -7 -6 -6 -6 -6 -6 -5 -5 -5 -5 -5 -5 -5 -5 -4 -3 -2 -2 -------- Run | Scr Mat Mat Min Exi Min Mat Sto Fac Low Low Dat Pro Fac Low Low Zio Pro Fac Was Fac Ext Cet Arc Hub Fac Res Res Qua Total Allies 38 | . . . 5 . . . 2 . . . . 1 . . . . . . . . 28 . 2 . . . . . Largest Group 18 | . . . 4 4 3 3 2 1 . . . 1 1 . . . . . . . 18 12 2 . . . . . Highest-Rated Group 632 | . . . 71 71 40 40 115 94 . . . 94 94 . . . . . . . 632 460 188 . . . . . Highest-Rated Ally 150 | . . . 31 31 16 16 99 94 . . . 94 94 . . . . . . . 150 137 94 . . . . . Total Orders . | . . . . . . . . . . . . . . . . . . . . . . . . . . . . . Ally Attacks 348 | . . . 22 . . 12 38 . . . . 17 . . . . . . . . 187 59 13 . . . . . Total Damage 7127 | . . . 219 . . 112 1218 . . . . 467 . . . . . . . . 3572 1070 469 . . . . . Kills 50 | . . . 3 . . . 15 . . . . 6 . . . . . . . . 20 5 1 . . . . . Allies Corrupted . | . . . . . . . . . . . . . . . . . . . . . . . . . . . . . Allies Melted 1 | . . . . . . . . . . . . . . . . . . . . . 1 . . . . . . . Intel | -11 -10 -9 -9 -9 -8 -8 -8 -7 -7 -7 -7 -6 -6 -6 -6 -6 -5 -5 -5 -5 -5 -5 -5 -5 -4 -3 -2 -2 ------- Run | Scr Mat Mat Min Exi Min Mat Sto Fac Low Low Dat Pro Fac Low Low Zio Pro Fac Was Fac Ext Cet Arc Hub Fac Res Res Qua Robot Analysis Total 1 | . . . . . . . . . . . . . . . . . . . . . 1 . . . . . . . Derelict Logs Recovered 6 | . . . 1 . . . . . . 1 . . . . 2 1 1 . . . . . . . . . . . Drone Launches . | . . . . . . . . . . . . . . . . . . . . . . . . . . . . . Drone Recoveries . | . . . . . . . . . . . . . . . . . . . . . . . . . . . . . Exploration | -11 -10 -9 -9 -9 -8 -8 -8 -7 -7 -7 -7 -6 -6 -6 -6 -6 -5 -5 -5 -5 -5 -5 -5 -5 -4 -3 -2 -2 ------------- Run | Scr Mat Mat Min Exi Min Mat Sto Fac Low Low Dat Pro Fac Low Low Zio Pro Fac Was Fac Ext Cet Arc Hub Fac Res Res Qua Turns Passed 21276 | 78 261 494 827 428 313 623 1193 1168 624 447 137 523 1345 755 1622 2171 798 878 429 610 1740 647 109 356 894 625 282 899 Spaces Moved 10701 | 45 145 204 440 251 173 268 495 613 375 278 92 290 655 411 740 924 274 325 223 313 920 250 67 157 580 404 159 630 Core 448 | 5 . 6 . . . . . . . . . . . . 1 . . . . . . . . . 228 208 . . Treads 9051 | 40 145 160 440 251 173 268 495 613 375 278 92 290 503 411 176 924 274 325 223 313 920 250 67 157 352 196 159 181 Legs 753 | . . 38 . . . . . . . . . . 152 . 563 . . . . . . . . . . . . . Wheels . | . . . . . . . . . . . . . . . . . . . . . . . . . . . . . Hover 449 | . . . . . . . . . . . . . . . . . . . . . . . . . . . . 449 Flight . | . . . . . . . . . . . . . . . . . . . . . . . . . . . . . Fastest Speed 50 | 50 160 120 160 160 180 160 160 155 155 150 150 150 150 172 150 230 250 180 152 160 160 152 160 160 50 50 152 53 Average Speed 164 | 147 160 155 160 163 180 168 160 161 155 150 150 159 168 172 190 231 250 214 160 160 160 160 160 160 117 107 165 84 Slowest Speed 1400 | 160 160 180 160 180 180 200 180 180 155 150 150 165 205 172 1400 250 250 250 190 160 160 180 160 160 180 170 190 160 Overloaded Moves . | . . . . . . . . . . . . . . . . . . . . . . . . . . . . . Propulsion Burnouts . | . . . . . . . . . . . . . . . . . . . . . . . . . . . . . Robots Hopped . | . . . . . . . . . . . . . . . . . . . . . . . . . . . . . Cave-ins Triggered . | . . . . . . . . . . . . . . . . . . . . . . . . . . . . . Exploration Rate (%) 48 | 3 19 17 98 61 66 21 83 21 55 52 68 59 23 69 80 82 51 10 86 10 94 89 79 20 23 14 8 46 Regions Visited 28 Branch Regions 17 Pre-discovered Areas 2 | . . . . . . . . . . . 1 . . . . 1 . . . . . . . . . . . . Known Exits Taken 16 | . . 1 . . . . . 1 1 1 1 1 1 1 1 1 1 . . 1 1 1 1 1 . . . . Unknown Exits Taken 10 | 1 1 . 1 1 1 1 1 . . . . . . . . . . . . . . . . . 1 1 1 . Scrap Searched 15 | . . . 1 . . . . . 3 2 . 1 . 2 3 2 1 . . . . . . . . . . . Spaces Dug 10 | . . . . . . . 2 . . . . . 2 . 1 . . . . . 5 . . . . . . . Terrain Destroyed 684 | . . . . . . . 24 60 1 . . 85 13 1 66 . 44 29 93 1 37 23 . 168 24 8 . 7 Melee 3 | . . . . . . . 2 . . . . . . . 1 . . . . . . . . . . . . . Projectile 77 | . . . . . . . 3 1 1 . . 2 5 1 4 . . . . 1 19 5 . 10 10 8 . 7 AOE 604 | . . . . . . . 19 59 . . . 83 8 . 61 . 44 29 93 . 18 18 . 158 14 . . . Terrain Rammed . | . . . . . . . . . . . . . . . . . . . . . . . . . . . . . Walls Destroyed . | . . . . . . . . . . . . . . . . . . . . . . . . . . . . . Machines Disabled . | . . . . . . . . . . . . . . . . . . . . . . . . . . . . . Actions | -11 -10 -9 -9 -9 -8 -8 -8 -7 -7 -7 -7 -6 -6 -6 -6 -6 -5 -5 -5 -5 -5 -5 -5 -5 -4 -3 -2 -2 --------- Run | Scr Mat Mat Min Exi Min Mat Sto Fac Low Low Dat Pro Fac Low Low Zio Pro Fac Was Fac Ext Cet Arc Hub Fac Res Res Qua Total 13170 | 52 159 320 517 271 174 377 861 757 399 290 91 319 828 438 881 958 349 423 264 380 1102 390 68 205 710 512 180 895 Wait 1110 | 1 1 64 49 3 1 42 314 77 4 1 . . 86 10 60 11 48 24 . 29 32 28 . 2 42 18 . 163 Move 10675 | 44 144 203 439 250 172 267 494 612 374 277 91 289 654 410 739 923 273 325 222 312 919 249 66 157 579 403 158 630 Hop . | . . . . . . . . . . . . . . . . . . . . . . . . . . . . . Pick Up 143 | . 3 4 2 10 . 18 7 10 2 2 . 3 9 2 8 7 2 8 5 4 6 9 . 3 5 7 2 5 Fast Attach 147 | 6 1 8 . 1 . 6 6 7 . . . . 7 . 4 5 . 8 6 2 6 11 . 3 6 25 7 22 Attach 85 | . . 2 . 1 . 2 . 4 2 1 . 3 4 1 14 3 1 1 2 5 3 4 1 5 14 3 3 6 Detach 50 | . . 2 . . . 1 2 5 . . . . 4 . 3 2 . 1 2 2 2 5 . 7 . 2 2 8 Swap 84 | . 1 2 . . . 3 7 2 2 . . 3 11 4 8 . 6 6 3 1 11 7 1 . 4 1 . 1 Drop 138 | . . 2 . 6 . 5 9 12 2 . . 1 11 . 2 7 1 9 10 4 10 15 . 1 12 5 8 6 Fire 639 | 1 9 33 25 . . 33 16 23 13 9 . 20 39 11 23 . 18 41 14 21 64 62 . 26 47 40 . 51 Melee 32 | . . . . . . . 6 5 . . . . . . 16 . . . . . . . . . . 5 . . Ram 3 | . . . . . . . . . . . . . . . . . . . . . . . . . . 3 . . Kick 5 | . . . . . . . . . . . . . 1 . 4 . . . . . . . . . . . . . Crush 12 | . . . 2 . 1 . . . . . . . 2 . . . . . . . 2 . . 1 1 . . 3 Escape Stasis . | . . . . . . . . . . . . . . . . . . . . . . . . . . . . . Rewire 47 | . . . . . . . . . . . . . . . . . . . . . 47 . . . . . . . Trap . | . . . . . . . . . . . . . . . . . . . . . . . . . . . . . Miscellaneous . | . . . . . . . . . . . . . . . . . . . . . . . . . . . . . Route ------- -11/Scrapyard -10/Materials -9/Materials (discovered 2 exits: *Min x2) -9/Mines (discovered 3 exits: *Mat x2 / *Exi) -9/Exiles -8/Mines -8/Materials -8/Storage (discovered 2 exits: *Fac / [*Rec]) -7/Factory (discovered 2 exits: *Fac / *Low) -7/Lower Caves -7/Lower Caves -7/Data Miner -6/Proximity Caves -6/Factory (discovered 2 exits: *Low x2) -6/Lower Caves -6/Lower Caves (discovered 2 exits: *Fac / *Zio) -6/Zion -5/Proximity Caves -5/Factory (discovered 3 exits: *Fac / Upp / Ext) -5/Waste -5/Factory -5/Extension (discovered 2 exits: *Fac / *Cet) -5/Cetus (discovered 2 exits: *Fac / *Arc) -5/Archives (discovered 2 exits: *Hub x2) -5/Hub_04(d) -4/Factory -3/Research -2/Research -2/Quarantine History --------- Turn | Location | Event 9 | -11/Scrapyard | Discovered new exit (range 14) 79 | -11/Scrapyard | Entered Materials 235 | -10/Materials | Discovered new exit (range 4) 318 | -10/Materials | Build established: Mutant 340 | -10/Materials | Entered another Materials area 340 | -9/Materials | Evolved 2 slots: Utility x2 610 | -9/Materials | Lost 3 parts (2n1w) 759 | -9/Materials | Identified exit to Mines 834 | -9/Materials | Entered Mines 835 | -9/Mines | Assembled infested the area 1080 | -9/Mines | A weapon hastily lodged in a ceiling crevice suddenly fell to the ground 1106 | -9/Mines | Learned Materials trap positions 1229 | -9/Mines | Discovered new exit (range 15) 1528 | -9/Mines | Assisted by bots powering up and referring to "LRC-V3" 1592 | -9/Mines | Discovered new exit (range 11) 1645 | -9/Mines | Deemed a non-threat by the Exiles lab entrance 1645 | -9/Mines | Discovered new exit (range 5) 1661 | -9/Mines | Entered Exiles 1661 | -9/Exiles | Accompanied by 4 allies 1691 | -9/Exiles | Led the pair of lost Derelicts to a safe place 1700 | -9/Exiles | Met 8R-AWN 1727 | -9/Exiles | Met EX-HEX 1773 | -9/Exiles | Met EX-BIN 1791 | -9/Exiles | Aligned with FarCom system 1793 | -9/Exiles | Given EX-Vault access code 1831 | -9/Exiles | Opened EX-Vault 1847 | -9/Exiles | Found Longsword +1 1856 | -9/Exiles | Found Army-in-a-Box 1890 | -9/Exiles | Warned to stay clear of 0b10 Research branches 1942 | -9/Exiles | Met EX-DEC 2064 | -9/Exiles | Discovered new exit (range 14) 2089 | -9/Exiles | Stole two prototypes: Army-in-a-Box, Longsword +1 2089 | -9/Exiles | Entered Mines 2089 | -8/Mines | Accompanied by 3 allies 2303 | -8/Mines | Build established: Hauler-Mutant 2386 | -8/Mines | Discovered new exit (range 9) 2402 | -8/Mines | Entered Materials 2402 | -8/Materials | Accompanied by 3 allies 2402 | -8/Materials | Evolved 2 slots: Propulsion x1, Utility x1 2403 | -8/Materials | Loaded intel: 16 trap records 2901 | -8/Materials | Discovered new exit (range 3) 2902 | -8/Materials | Build established: Mutant 3025 | -8/Materials | Entered Storage 3398 | -8/Storage | Met 01-MTF 3668 | -8/Storage | Discovered new exit (range 15) 3980 | -8/Storage | Used back door to open Recycling access 3980 | -8/Storage | Discovered new exit (range 5) 4218 | -8/Storage | Entered Factory 4218 | -7/Factory | Accompanied by 1 ally (01-MTF) 4218 | -7/Factory | Evolved 2 slots: Utility x2 4220 | -7/Factory | FarCom data flow suspended 4223 | -7/Factory | 01-MTF left 5047 | -7/Factory | Garrison activated, responded to threat 5104 | -7/Factory | Discovered new exit (range 16) 5146 | -7/Factory | Identified exit to Factory 5350 | -7/Factory | Discovered new exit (range 7) 5359 | -7/Factory | Identified exit to Lower Caves 5386 | -7/Factory | Entered Lower Caves 5518 | -7/Lower Caves | Encountered a Warlord checkpoint 5619 | -7/Lower Caves | Spotted 4S-HXJ(f) 5620 | -7/Lower Caves | Encountered a Master Thief 5623 | -7/Lower Caves | Spotted RJ-TU8(f) 5624 | -7/Lower Caves | Encountered a Master Thief 5627 | -7/Lower Caves | Longsword +1 stolen by Master Thief 5627 | -7/Lower Caves | Adv. Treads stolen by Master Thief 5877 | -7/Lower Caves | Spotted 5P-1K5(f) 5877 | -7/Lower Caves | Spotted HN-CGO(f) 5878 | -7/Lower Caves | Encountered a Master Thief 5878 | -7/Lower Caves | Encountered a Master Thief 5885 | -7/Lower Caves | Enh. Autogun stolen by Master Thief 5893 | -7/Lower Caves | Med. Reactive Plating stolen by Master Thief 5994 | -7/Lower Caves | Discovered new exit (range 9) 6006 | -7/Lower Caves | Identified exit to Lower Caves 6010 | -7/Lower Caves | Entered another Lower Caves area 6012 | -7/Lower Caves | Attracted the attention of an 0b10 checkpoint 6188 | -7/Lower Caves | Learned location of 1 exit from Proximity Caves 6344 | -7/Lower Caves | Encountered a Warlord checkpoint 6374 | -7/Lower Caves | P-60 Hacker assimilated allied K6-DQJ(b) 6444 | -7/Lower Caves | Discovered new exit (range 10) 6454 | -7/Lower Caves | Identified exit to Data Miner 6457 | -7/Lower Caves | Entered Data Miner 6457 | -7/Data Miner | Discovered new exit (range 6) 6486 | -7/Data Miner | Met Data Miner 6514 | -7/Data Miner | Learned location of Section 7 (-2) 6514 | -7/Data Miner | Acquired the access code to Warlord's prototype stash 6540 | -7/Data Miner | Received God Mode back door access code from Data Miner 6592 | -7/Data Miner | Identified exit to Proximity Caves 6594 | -7/Data Miner | Entered Proximity Caves 6596 | -6/Proximity Caves | Attracted the attention of an 0b10 checkpoint 6737 | -6/Proximity Caves | Escorted by Enhanced Grunt 6798 | -6/Proximity Caves | Spotted H0-NKK(f) 6799 | -6/Proximity Caves | Encountered a Master Thief 6800 | -6/Proximity Caves | Spotted 5T-PMB(f) 6801 | -6/Proximity Caves | Encountered a Master Thief 6803 | -6/Proximity Caves | Med. Treads stolen by Master Thief 6808 | -6/Proximity Caves | Allies destroyed H0-NKK(f) 7117 | -6/Proximity Caves | Entered Factory 7117 | -6/Factory | Accompanied by 1 ally 7117 | -6/Factory | Evolved 2 slots: Utility x2 8126 | -6/Factory | Build established: Scavenger-Mutant 8161 | -6/Factory | Identified exit to Lower Caves 8462 | -6/Factory | Entered Lower Caves 8886 | -6/Lower Caves | Spotted TF-MJF(f) 8887 | -6/Lower Caves | Encountered a Master Thief 8890 | -6/Lower Caves | Lgt. Antimatter Reactor stolen by Master Thief 9193 | -6/Lower Caves | Discovered new exit (range 15) 9216 | -6/Lower Caves | Identified exit to Lower Caves 9217 | -6/Lower Caves | Entered another Lower Caves area 9257 | -6/Lower Caves | Discovered new exit (range 5) 9264 | -6/Lower Caves | Identified exit to Factory 9330 | -6/Lower Caves | Lost 3 parts (1n1u1w) 9439 | -6/Lower Caves | Spotted B-75 Beast 9667 | -6/Lower Caves | Learned Factory garrison access intel 9936 | -6/Lower Caves | Lost 10 parts (1p2n5u2w) 10025 | -6/Lower Caves | Found Alien Artifact 10025 | -6/Lower Caves | Identified Core Expander 10025 | -6/Lower Caves | Installed Core Expander, added new Weapon slot 10143 | -6/Lower Caves | Build established: Mutant 10149 | -6/Lower Caves | Spotted W5-SOU(f) 10151 | -6/Lower Caves | Encountered a Master Thief 10155 | -6/Lower Caves | Destroyed W5-SOU(f) 10218 | -6/Lower Caves | Spotted W9-3Q3(f) 10219 | -6/Lower Caves | Encountered a Master Thief 10221 | -6/Lower Caves | Master Tearclaws stolen by Master Thief 10619 | -6/Lower Caves | Spotted 8S-NCL(f) 10620 | -6/Lower Caves | Encountered a Master Thief 10624 | -6/Lower Caves | Phase Shifter stolen by Master Thief 10666 | -6/Lower Caves | Spotted GU-7F3(f) 10667 | -6/Lower Caves | Encountered a Master Thief 10669 | -6/Lower Caves | Lgt. Fission Core stolen by Master Thief 10793 | -6/Lower Caves | Discovered new exit (range 11) 10819 | -6/Lower Caves | Spotted VH-YEQ(f) 10820 | -6/Lower Caves | Encountered a Master Thief 10821 | -6/Lower Caves | Spotted OW-1PG(f) 10822 | -6/Lower Caves | Encountered a Master Thief 10824 | -6/Lower Caves | Flexi-carbon Leg stolen by Master Thief 10825 | -6/Lower Caves | Force Field stolen by Master Thief 10825 | -6/Lower Caves | Identified exit to Zion 10839 | -6/Lower Caves | Entered Zion 10872 | -6/Zion | Acquired unknown access codes intercepted by a Zionite 11005 | -6/Zion | Found Prototype Energy Gun 11044 | -6/Zion | Discovered new exit (range 13) 11244 | -6/Zion | System corruption cleaned by Quarantine Array 11649 | -6/Zion | Build established: Derelict-Assassin 11943 | -6/Zion | Given A8's code to call for help 12403 | -6/Zion | Given the Hacking Drone Bay 12408 | -6/Zion | Found Prototype Device 12408 | -6/Zion | Identified Hacking Drone Bay 13007 | -6/Zion | Identified exit to Proximity Caves 13010 | -6/Zion | Entered Proximity Caves 13642 | -5/Proximity Caves | Spotted UF-GS6(f) 13644 | -5/Proximity Caves | Encountered a Master Thief 13645 | -5/Proximity Caves | Lgt. Angular Momentum Engine stolen by Master Thief 13743 | -5/Proximity Caves | Discovered exit to Factory (range 9) 13772 | -5/Proximity Caves | Attracted the attention of an 0b10 checkpoint 13808 | -5/Proximity Caves | Entered Factory 13808 | -5/Factory | Evolved 2 slots: Propulsion x1, Utility x1 13809 | -5/Factory | Identified exit to Upper Caves 13809 | -5/Factory | Identified exit to Extension 13810 | -5/Factory | Loaded intel: 4 garrison access locations 14047 | -5/Factory | Discovered new exit (range 18) 14051 | -5/Factory | Build established: Derelict-Tank 14145 | -5/Factory | Identified exit to Factory 14686 | -5/Factory | Sucked down chute 14686 | -5/Factory | Entered Waste 14752 | -5/Waste | Spotted C-40 Crusher 14761 | -5/Waste | Spotted C-40 Crusher 14761 | -5/Waste | Destroyed C-40 Crusher 14769 | -5/Waste | Spotted C-40 Crusher 14773 | -5/Waste | Spotted C-40 Crusher 14779 | -5/Waste | Crushed by Compactor (1 part destroyed) 14781 | -5/Waste | Spotted C-40 Crusher 14781 | -5/Waste | Destroyed C-40 Crusher 14784 | -5/Waste | Destroyed C-40 Crusher 14794 | -5/Waste | Destroyed C-40 Crusher 14810 | -5/Waste | Found Damper Plating 14813 | -5/Waste | Spotted C-40 Crusher 14819 | -5/Waste | Destroyed C-40 Crusher 14828 | -5/Waste | Lost 5 parts (1p1n2u1w) 15056 | -5/Waste | Discovered new exit (range 12) 15114 | -5/Waste | Identified exit to Factory 15115 | -5/Waste | Entered Factory 15301 | -5/Factory | Build established: Gunner 15490 | -5/Factory | Spotted B-75 Beast 15701 | -5/Factory | Discovered exit to Extension (range 15) 15725 | -5/Factory | Entered Extension 15980 | -5/Extension | Rescued a captive Derelict 16052 | -5/Extension | Rescued a captive Derelict 16074 | -5/Extension | Rescued A7 16174 | -5/Extension | System corruption reached 10% 16201 | -5/Extension | Rescued a captive Derelict 16223 | -5/Extension | Build established: Commander-Gunner 16533 | -5/Extension | Spotted B-75 Beast 16542 | -5/Extension | Allies destroyed B-75 Beast 16547 | -5/Extension | Spotted B-75 Beast 16565 | -5/Extension | Destroyed B-75 Beast 16675 | -5/Extension | Disrupted transfer network 16772 | -5/Extension | Discovered new exit (range 16) 16773 | -5/Extension | Discovered exit to Factory (range 15) 16850 | -5/Extension | Build established: Scavenger-Mutant 16924 | -5/Extension | Rescued a captive Derelict 16926 | -5/Extension | Rescued a captive Derelict 17084 | -5/Extension | Rescued a captive Derelict 17085 | -5/Extension | Rescued a captive Derelict 17115 | -5/Extension | Rescued a captive Derelict 17198 | -5/Extension | Rescued a captive Derelict 17199 | -5/Extension | Rescued a captive Derelict 17225 | -5/Extension | First assault squad dispatched 17355 | -5/Extension | Build established: Commander-Gunner 17441 | -5/Extension | Identified exit to Cetus 17465 | -5/Extension | Entered Cetus 17465 | -5/Cetus | Accompanied by 12 allies (A7) 17470 | -5/Cetus | Acquired a Cetus Manufacturing Module code from A7 17487 | -5/Cetus | Spotted Cetus Guard 17487 | -5/Cetus | Spotted Cetus Guard 17490 | -5/Cetus | Spotted Cetus Guard 17491 | -5/Cetus | Spotted Cetus Guard 17506 | -5/Cetus | Allies destroyed Cetus Guard 17508 | -5/Cetus | Allies destroyed Cetus Guard 17525 | -5/Cetus | Destroyed Cetus Guard 17577 | -5/Cetus | Cetus Manufacturing Module disabled 17622 | -5/Cetus | Destroyed 7 combat bots 17700 | -5/Cetus | Failed to start Cetus Manufacturing Module 17900 | -5/Cetus | Found Prototype Protection 17900 | -5/Cetus | Identified Med. Regenerative Plating 17904 | -5/Cetus | Extracted ID and sensor layout for unrecognized location from A7's data core 17922 | -5/Cetus | Discovered new exit (range 16) 17951 | -5/Cetus | Spotted Cetus Guard 17951 | -5/Cetus | Spotted Cetus Guard 17959 | -5/Cetus | Spotted Cetus Guard 17963 | -5/Cetus | Destroyed Cetus Guard 17967 | -5/Cetus | Destroyed Cetus Guard 17981 | -5/Cetus | Destroyed Cetus Guard 17987 | -5/Cetus | Destroyed Cetus Guard 18008 | -5/Cetus | Discovered exit to Factory (range 15) 18023 | -5/Cetus | Met Revision 17 18110 | -5/Cetus | Identified exit to Archives 18112 | -5/Cetus | Entered Archives 18143 | -5/Archives | Met Zhirov 18149 | -5/Archives | Reinforcements dispatched to Archives 18151 | -5/Archives | Unable to access archive contents 18154 | -5/Archives | Enhanced Grunt warped into view, answering call for help 18157 | -5/Archives | Enhanced Grunt warped into view, answering call for help 18167 | -5/Archives | Unable to access archive contents 18184 | -5/Archives | Discovered new exit (range 16) 18194 | -5/Archives | Reinforcements dispatched to Archives 18196 | -5/Archives | Zhirov warped through subspace 18196 | -5/Archives | Discovered new exit (range 15) 18214 | -5/Archives | Zhirov detonated Archives 18219 | -5/Archives | Identified exit to Hub_04(d) 18221 | -5/Archives | Entered Hub_04(d) 18245 | -5/Hub_04(d) | Lost 3 parts (1n2w) 18417 | -5/Hub_04(d) | Discovered exit to Factory (range 5) 18430 | -5/Hub_04(d) | Network Hub disabled 18461 | -5/Hub_04(d) | Spotted Lightning 18475 | -5/Hub_04(d) | Spotted Lightning 18475 | -5/Hub_04(d) | Spotted Lightning 18475 | -5/Hub_04(d) | Destroyed Lightning 18481 | -5/Hub_04(d) | Destroyed Lightning 18485 | -5/Hub_04(d) | Garrison activated, responded to threat 18504 | -5/Hub_04(d) | Destroyed Lightning 18521 | -5/Hub_04(d) | First assault squad dispatched 18532 | -5/Hub_04(d) | Found Exp. Targeting Computer 18541 | -5/Hub_04(d) | Found Prototype Energy Cannon 18544 | -5/Hub_04(d) | Found Prototype Device 18577 | -5/Hub_04(d) | Entered Factory 18577 | -4/Factory | Evolved 2 slots: Utility x2 18582 | -4/Factory | Identified Exp. Phase Shifter 18606 | -4/Factory | Build established: Scavenger-Gunner 18654 | -4/Factory | Found Quantum Capacitor 19234 | -4/Factory | Garrison activated, responded to threat 19261 | -4/Factory | Identified EMDS 19270 | -4/Factory | Destroyed 9 combat bots 19276 | -4/Factory | Released all parts (9) 19306 | -4/Factory | Core integrity fell below 50% 19307 | -4/Factory | Lost 15 parts (1p2n8u4w) 19347 | -4/Factory | Core integrity fell below 20% 19396 | -4/Factory | System corruption reached 10% 19428 | -4/Factory | Released all parts (2) 19463 | -4/Factory | Discovered new exit (range 15) 19471 | -4/Factory | Entered Research 19471 | -3/Research | Evolved 2 slots: Utility x2 19510 | -3/Research | Spotted B-86 Titan 19543 | -3/Research | Build established: Mutant 19630 | -3/Research | Spotted B-86 Titan 19777 | -3/Research | Core integrity fell below 50% 20012 | -3/Research | Discovered new exit (range 6) 20096 | -3/Research | Entered another Research area 20096 | -2/Research | Evolved 2 slots: Power x1, Utility x1 20208 | -2/Research | Build established: Scavenger-Gunner 20351 | -2/Research | Discovered new exit (range 19) 20378 | -2/Research | Entered Quarantine 20675 | -2/Quarantine | Scanned by Researcher 20684 | -2/Quarantine | Cryocooling Duct disabled 20699 | -2/Quarantine | Ambient heat levels rising (+20) 20699 | -2/Quarantine | Non-combat units ordered to evacuate 20721 | -2/Quarantine | Cryocooling Duct disabled 20736 | -2/Quarantine | Ambient heat levels rising (+20) 20736 | -2/Quarantine | Combat units ordered to evacuate 20753 | -2/Quarantine | Cryocooling Duct disabled 20768 | -2/Quarantine | Ambient heat levels rising (+20) 20810 | -2/Quarantine | Lost 10 parts (2p6u2w) 20836 | -2/Quarantine | Quarantine Guard activated 20854 | -2/Quarantine | Lost 3 parts (1n2u) 20878 | -2/Quarantine | Spotted Quarantine Guard 20878 | -2/Quarantine | Spotted Quarantine Guard 20879 | -2/Quarantine | Spotted Quarantine Guard 20923 | -2/Quarantine | Cryocooling Duct disabled 20926 | -2/Quarantine | Cryocooling Duct disabled 20938 | -2/Quarantine | Ambient heat levels rising (+20) 20941 | -2/Quarantine | Ambient heat levels rising (+20) 20965 | -2/Quarantine | Spotted Quarantine Guard 20981 | -2/Quarantine | Spotted Quarantine Guard 21081 | -2/Quarantine | Destroyed Quarantine Guard 21103 | -2/Quarantine | Found Sigix Corpse 21111 | -2/Quarantine | Found Sigix Corpse 21119 | -2/Quarantine | Spotted Quarantine Guard 21165 | -2/Quarantine | Lost 5 parts (1p1n3u) 21175 | -2/Quarantine | Spotted Quarantine Guard 21225 | -2/Quarantine | Found Alien Artifact 21225 | -2/Quarantine | Identified Phase Armor 21235 | -2/Quarantine | Destroyed Quarantine Guard 21267 | -2/Quarantine | Core integrity fell below 50% 21277 | -2/Quarantine | Core integrity fell below 20% 21278 | -2/Quarantine | Core destroyed Last Messages --------------- 21261_ Overheating: Matter decay (-51). 21263_ Power failure, Quantum Reactor shutdown. 21264_ Overheating: Core damaged (-217). 21265_ Overheating: Matter decay (-58). 21266_ Power failure, Lgt. Quantum Reactor shutdown. 21267_ Overheating: Core damaged (-188). 21267_ Knocked back. 21268_ Overheating: Matter decay (-47). 21272_ Power failure, Quantum Reactor shutdown. 21272_ Overheating: Enh. Optical Array damaged (-12). 21272_ Overheating: Lgt. Quantum Reactor damaged (-12). 21273_ Power failure, Lgt. Quantum Reactor shutdown. 21273_ Overheating: Lgt. Quantum Reactor damaged (-17). 21276_ Overheating: KE Penetrator damaged (-18). 21276_ Overheating: Enh. Optical Array damaged (-7). 21276_ Overheating: Quantum Reactor damaged (-9). 21277_ Overheating: Core damaged (-188). 21277_ Acquired Prototype Device. 21277_ Identified Exp. Thermal Generator. 21278_ Overheating: Core damaged (-275). Map ----- +----------------------------------------------------+ | ?????????????????????????????????????????????????? | | ?????????????????????????????????????????????????? | | ?????????????????????????????????????????????????? | | ?????????????????????????????????????????????????? | | ?????????????????????????????????????????????????? | | ?????????????????????????????????????????????????? | | ?????????????????????????????????????????????????? | | ???#########?######??????????????????????????????? | | ???? ?# #??????????????????????????????? | | ???? """ """ # #??????????????????????????????? | | ???? """ """ # #??????????????????????????????? | | ???? """ """ + #??????????????????????????????? | | ???? """ """ # #??????????????????????????????? | | ???? """ """ # #??????????????????????????????? | | ???? ?# ##########?????????????????????? | | ???#* ! ?# # #?????????????????????? | | ???########??# # #?????????????????????? | | ?????????????# # """ #?????????????????????? | | ?????????????# # """ #????##############???? | | ?????????????# # """ #????# #???? | | ?????????????# # """ #????# ""##### | | ???########### # """ |#????# " " " ""# | | ???# # # """ #????# "" "" "" "# "" | | ???# # " #????# "" "" "" T# "" | | ???# ;] ;;;+#;######### "" "" "" # "" | | ???# " " " ; @ # " " " # | | ???# """ " ; !%= # ""! " "# "" | | ???# """ ; ] ; " "" # "" | | ???# # Y # " " # "" | | ???# ####;####;##### # |= # | | ???###########??##########?# # ! == # %"" | | ???????????????????#"""" #?# ###""""####### % " | | ???????????????????#""R""#?# #?#[ ! = " % | | ?????????????????###"" ""### #?# = *####### = | | ?????????????????# # ### = " #???##### | | ?????????????????# * # =###???????? | | ?????????????????# " # #?????????? | | ?????????????????# "" """ # *#?????????? | | ?????????????????# G """ =%#?????????? | | ?????????????????# "" """ |#?????????? | | ?????????????????# " !###???????? | | ?????????????????# ] # [] "#???????? | | ?????????????????########### [[%""#???????? | | ???????????????????? # ! ""#??###### | | ???????????????????? # ""#??# | | ???????????????????? ""#??# | | ???????????????????"""" "#??# " | | ????????????????????""" # ""#??# T " | | ????????????????????""" ]! ##?# "" | | ????????????????????""" #]! "##?# """ | +----------------------------------------------------+ Best States ------------- Heat Dissipation 158 Energy Generation 52 Energy Capacity 1150 Matter Stores 547 Matter Capacity 700 Sight Range 22 Robot Scan Range 16 Terrain Scan Range 18 Terrain Scan Density 135 Jamming Range 16 Power Amplification 40 Base Temperature (-) 200 Armor Coverage 3600 Resistance: KI 30 Resistance: TH 25 Resistance: EM 90 Weapon Cycling 20 Phase Shifting 20 Evasion (%) 60 Targeting Accuracy 12 Target Analysis 8 Armor Integrity Analysis 50 Recoil Reduction 4 Matter Filtering 50 Energy Filtering 50 Salvage Targeting 3 Offensive Hacking 10 Defensive Hacking 10 Item Schematics ----------------- Combat Drone Bay | -7/Data Miner | Free Lgt. Regenerative Plating | -7/Data Miner | Free Exp. Flexi-carbon Leg | -7/Data Miner | Free Exp. Cesium-ion Thruster | -7/Data Miner | Free Exp. Targeting Computer | -7/Data Miner | Free Tactical Coordination Suite | -7/Data Miner | Free Kinetic Spear | -7/Data Miner | Free Centrium Medium Armor Plating | -4/Factory | Scanalyzed Robot Schematics ------------------ S-27 Virus | -7/Data Miner | Free G-50 Soldier | -7/Data Miner | Free H-66 Slayer | -7/Data Miner | Free I-36 Angel | -7/Data Miner | Free Fabricated ------------ Nothing Alien Tech Used ----------------- Core Expander Phase Armor Achievements -------------- Desperate Times Explorer Help From High Places Project G-00 Streaker Challenges ------------ None Game ------ Seed WarforgedOpossum Manual? 1 Play Time 03:15:54 Cumulative 58.7 hours Start 2020.10.10 @ 16:12:52 End 2020.10.10 @ 19:49:01 Sessions 1 Manual Loads 0 Difficulty Rogue Special Mode None Game No. 56 Rogue 55 Adventurer 1 Explorer 0 Win Type - Total 3 Types 3/0/0/0/0/0/0/0/0 Lore% 40 Gallery% 54 Achievement% 47 Wizard Run 0 Options --------- ASCII 0 Keyboard 1 Movement Numpad Keybinds 0 Fullscreen 1 Font 14/X11 Map View 84x54 Tactical HUD 1 Map Filters NONE Filters NONE Steam 1 RUN: c70547d4-791e-4571-bff2-8f46b3f0fb20